bitfinex/quotes_SOLUSD_20260224
["timestamp","ask_amount","ask_price","bid_price","bid_amount"]
[1771930802672,13.00745327,76.879,76.851,0.73630456]
[1771930802878,5.21061692,76.87,76.851,0.73630456]
[1771930805189,5.94247523,76.87,76.851,0.73630456]
[1771930805378,5.21061692,76.86,76.851,0.73630456]
[1771930806284,5.21061692,76.86,76.85,13.01223839]
[1771930806285,5.31061692,76.9,76.868,0.73630456]
[1771930806589,0.73185831,76.879,76.837,0.14216157]
[1771930806889,5.21061692,76.85,76.814,45.56461061]
[1771930807187,5.21061692,76.85,76.815,0.28432314]
[1771930807188,0.73185831,76.849,76.815,0.28432314]
[1771930807388,0.73185831,76.849,76.794,5.36086188]
[1771930807389,5.21061692,76.84,76.798,32.55253958]
[1771930807580,5.21061692,76.85,76.82,5.21061692]
[1771930807767,5.21061692,76.85,76.821,0.14216157]
[1771930807970,5.21061692,76.85,76.821,0.28432314]
[1771930808171,5.21061692,76.84,76.81,5.21061692]
[1771930808386,5.21061692,76.84,76.811,0.28432314]
[1771930808777,5.21061692,76.86,76.823,0.28432314]
[1771930808985,0.78824866,76.859,76.823,0.28432314]
[1771930813568,0.78824866,76.859,76.83,5.21061692]
[1771930817794,0.78824866,76.858,76.831,13.01557964]
[1771930822690,5.21061692,76.88,76.84,5.21061692]
[1771930822899,0.78824866,76.878,76.84,5.21061692]
[1771930826004,0.78824866,76.878,76.86,5.21061692]
[1771930826204,0.78824866,76.882,76.86,5.21061692]
[1771930827703,0.1,76.89,76.87,5.21061692]
[1771930827885,0.78824866,76.889,76.87,5.21061692]
[1771930828081,0.78824866,76.889,76.871,13.00880696]
[1771930831294,0.78824866,76.889,76.871,45.53082436]
[1771930831508,0.1,76.89,76.88,5.21061692]
[1771930833407,0.1,76.89,76.88,5.20267316]
[1771930835215,0.1,76.9,76.881,0.63923132]
[1771930835517,0.1,76.9,76.89,5.84190448]
[1771930836107,0.1,76.9,76.883,0.63923132]
[1771930837099,0.82346529,76.9,76.884,13.64092864]
[1771930837306,0.1,76.9,76.885,0.62946766]
[1771930837502,0.08716073,76.904,76.891,0.69041576]
[1771930837699,0.1,76.91,76.891,0.69041576]
[1771930839518,0.72346529,76.909,76.892,13.00525412]
[1771930840805,0.1,76.91,76.893,0.69041576]
[1771930840999,0.1,76.91,76.9,5.20267316]
[1771930841198,0.82346529,76.91,76.894,0.69041576]
[1771930842303,0.82346529,76.91,76.895,13.00474673]
[1771930844017,0.1,76.91,76.901,0.69041576]
[1771930844399,0.72346529,76.909,76.902,9.38140523]
[1771930844599,0.72346529,76.909,76.89,5.20267316]
[1771930844820,0.1,76.91,76.891,0.69041576]
[1771930845008,0.82346529,76.91,76.891,0.69041576]
[1771930845212,0.1,76.91,76.901,0.69041576]
[1771930845613,0.72346529,76.919,76.901,0.69041576]
[1771930845815,0.1,76.93,76.911,0.69041576]
[1771930846016,0.1,76.93,76.92,5.20267316]
[1771930846207,0.82346529,76.94,76.921,0.69041576]
[1771930847712,0.82346529,76.94,76.923,0.69041576]
[1771930850321,0.82346529,76.94,76.924,0.69041576]
[1771930850506,0.82346529,76.94,76.925,0.69041576]
[1771930852916,0.82346529,76.94,76.926,12.99950601]
[1771930855127,0.82346529,76.94,76.926,13.59061705]
[1771930857111,0.1,76.94,76.927,0.59111104]
[1771930857310,0.1,76.95,76.93,5.20267316]
[1771930857620,0.72123944,76.95,76.931,0.59111104]
[1771930860124,0.72123944,76.95,76.933,0.59111104]
[1771930860331,0.1,76.96,76.941,0.59111104]
[1771930860519,0.1,76.96,76.95,5.7937842]
[1771930860920,0.1,76.97,76.951,0.59111104]
[1771930861122,0.1,76.97,76.961,0.59111104]
[1771930861322,12.98718165,76.999,76.961,0.59111104]
[1771930861514,12.98718165,76.999,76.97,5.20267316]
[1771930861713,12.98718165,76.999,76.955,0.59111104]
[1771930861931,5.20267316,76.98,76.95,5.7937842]
[1771930862424,5.20267316,76.98,76.951,0.59111104]
[1771930862625,5.20267316,76.99,76.951,0.59111104]
[1771930864031,12.98886853,76.989,76.96,5.20267316]
[1771930864232,12.98886853,76.989,76.961,0.59111104]
[1771930864615,12.98886853,76.989,76.97,5.7937842]
[1771930865630,12.98718165,76.999,76.971,0.59111104]
[1771930865818,45.45513577,76.999,76.971,0.59111104]
[1771930866838,45.45513577,76.999,76.966,0.59111104]
[1771930867037,12.98718165,76.999,76.971,0.59111104]
[1771930867732,12.98718165,76.999,76.972,12.99173725]
[1771930868127,12.98718165,76.999,76.973,0.59111104]
[1771930868535,37.76600435,77.01,76.991,0.59111104]
[1771930868536,0.1,77.01,76.991,0.59111104]
[1771930868836,0.1,77.01,76.981,0.59111104]
[1771930868837,5.30267316,77.01,76.981,0.59111104]
[1771930869338,0.1,77.01,76.981,0.59111104]
[1771930869536,12.9854952,77.009,76.981,0.59111104]
[1771930871143,5.30267316,77.01,76.971,0.59111104]
[1771930872129,5.30267316,77.01,76.982,0.89072325]
[1771930872750,5.20267316,77.0,76.971,0.59111104]
[1771930873345,12.98718165,76.999,76.971,0.59111104]
[1771930873726,5.20267316,76.99,76.964,0.59111104]
[1771930874749,12.98886853,76.989,76.965,13.58402989]
[1771930875647,12.98886853,76.989,76.966,0.59111104]
[1771930877763,5.20267316,76.98,76.943,0.59111104]
[1771930877928,5.20267316,76.97,76.943,0.59111104]
[1771930878131,5.20267316,76.98,76.949,0.59111104]
[1771930878349,5.20267316,76.98,76.951,0.59111104]
[1771930879841,12.98886853,76.989,76.953,0.59111104]
[1771930880036,12.98886853,76.989,76.961,0.59111104]
[1771930881155,12.98886853,76.989,76.963,0.59111104]
[1771930884749,5.20267316,76.99,76.965,0.58208344]
[1771930886033,5.20267316,76.98,76.96,0.58208344]
[1771930886234,5.20267316,76.98,76.948,0.58208344]
[1771930886936,12.99055586,76.979,76.949,12.99562047]
[1771930887134,12.99055586,76.979,76.95,0.58208344]
[1771930888254,5.20267316,76.96,76.944,0.58208344]
[1771930888754,5.20267316,76.95,76.926,0.28432314]
[1771930889056,0.41791655,76.949,76.925,32.49908557]
[1771930889471,0.41791655,76.949,76.926,0.28432314]
[1771930890159,0.41791655,76.949,76.925,32.49908557]
[1771930890341,5.20267316,76.95,76.926,0.28432314]
[1771930890850,5.20267316,76.95,76.929,0.49657707]
[1771930891156,5.20267316,76.94,76.924,0.49657707]
[1771930892638,5.20267316,76.94,76.925,12.999675]
[1771930892845,5.20267316,76.94,76.925,13.49625207]
[1771930893356,5.20267316,76.94,76.926,0.49657707]
[1771930895251,5.19873656,76.94,76.926,0.49657707]
[1771930896663,5.19873656,76.94,76.928,0.49657707]
[1771930897162,5.19873656,76.94,76.927,12.99933703]
[1771930897554,5.39873656,76.94,76.927,12.99933703]
[1771930898461,0.2,76.93,76.927,12.99933703]
[1771930898644,5.39873656,76.94,76.927,12.99933703]
[1771930898839,5.39873656,76.94,76.927,0.49657707]
[1771930899041,0.41791655,76.961,76.934,0.49657707]
[1771930899339,5.19873656,76.95,76.934,0.29657707]
[1771930902662,5.19873656,76.95,76.935,12.99798531]
[1771930903250,5.19873656,76.95,76.935,13.49456238]
[1771930903558,0.46870687,76.949,76.931,12.9985069]
[1771930903746,0.46870687,76.949,76.932,0.49657707]
[1771930905859,5.39873656,76.95,76.934,0.49657707]
[1771930906058,5.39873656,76.95,76.934,0.29657707]
[1771930906557,0.46870687,76.949,76.934,0.29657707]
[1771930906748,0.46870687,76.939,76.916,0.14216157]
[1771930906954,0.46870687,76.939,76.915,32.50314538]
[1771930907357,0.46870687,76.939,76.916,0.14216157]
[1771930907778,0.46870687,76.939,76.916,0.28432314]
[1771930908057,0.46870687,76.939,76.919,0.49657707]
[1771930909257,12.99747848,76.938,76.919,0.49657707]
[1771930909465,0.46870687,76.937,76.917,13.00102708]
[1771930909660,0.46870687,76.937,76.917,13.49760415]
[1771930909870,0.46870687,76.937,76.918,0.49657707]
[1771930912367,0.46870687,76.937,76.877,52.03057301]
[1771930912368,12.9957438,76.949,76.92,0.49657707]
[1771930912566,0.2,76.95,76.928,0.49657707]
[1771930914253,12.99405434,76.959,76.928,0.49657707]
[1771930914472,13.42988745,76.959,76.93,0.49657707]
[1771930915351,12.99405434,76.959,76.93,0.49657707]
[1771930915665,12.99231514,76.969,76.941,0.4715675]
[1771930916071,13.42814825,76.969,76.941,0.4715675]
[1771930916265,0.43583311,76.968,76.941,0.4715675]
[1771930917551,0.43583311,76.968,76.943,0.4715675]
[1771930919272,5.19873656,76.97,76.943,0.4715675]
[1771930919459,12.99159606,76.973,76.943,0.4715675]
[1771930919866,0.43583311,76.969,76.945,0.4715675]
[1771930920267,0.47719288,76.959,76.92,5.19873656]
[1771930920468,0.47719288,76.949,76.91,5.19873656]
[1771930920667,0.47719288,76.949,76.911,0.28432314]
[1771930920881,0.47719288,76.949,76.921,0.28432314]
[1771930921475,0.47719288,76.949,76.923,0.28432314]
[1771930921685,5.19873656,76.95,76.922,13.000182]
[1771930921686,0.47719288,76.947,76.922,13.000182]
[1771930922766,0.47719288,76.947,76.922,13.4717495]
[1771930923279,0.47719288,76.947,76.923,0.4715675]
[1771930924379,0.47719288,76.947,76.925,0.4715675]
[1771930926581,5.19873656,76.97,76.942,0.4715675]
[1771930926781,0.47719288,76.969,76.942,0.4715675]
[1771930929485,0.47719288,76.969,76.943,45.48821854]
[1771930929680,0.47719288,76.969,76.944,0.4715675]
[1771930930980,0.47719288,76.959,76.935,32.49468505]
[1771930931281,0.47719288,76.949,76.935,32.49468505]
[1771930932373,5.19873656,76.96,76.936,13.46938386]
[1771930932887,5.19873656,76.96,76.937,0.4715675]
[1771930934396,5.19873656,76.96,76.938,12.99747848]
[1771930934591,5.19873656,76.96,76.939,0.4715675]
[1771930934798,0.43020773,76.961,76.939,0.4715675]
[1771930935097,0.43020773,76.969,76.939,0.4715675]
[1771930935478,0.43020773,76.969,76.941,0.4715675]
[1771930937694,0.43020773,76.969,76.893,65.01155403]
[1771930937695,0.43020773,76.989,76.959,0.4715675]
[1771930938889,0.43020773,76.998,76.961,0.4715675]
[1771930939297,5.19873656,76.99,76.961,0.4715675]
[1771930939878,5.19873656,76.99,76.963,0.4715675]
[1771930940410,0.43020773,76.994,76.963,0.4715675]
[1771930942691,0.43020773,76.999,76.971,0.4715675]
[1771930943093,0.43020773,77.006,76.981,0.4715675]
[1771930944585,0.43020773,77.006,76.983,0.48348422]
[1771930946391,5.19873656,76.99,76.967,0.64216157]
[1771930946684,5.19873656,76.99,76.968,0.5]
[1771930948708,5.19873656,76.99,76.969,12.99224363]
[1771930948911,18.18758926,76.99,76.969,12.99224363]
[1771930949093,17.37153317,76.99,76.969,12.99224363]
[1771930949293,18.18758926,76.99,76.969,12.99224363]
[1771930952799,0.1,77.01,76.967,0.5]
[1771930953000,5.19873656,76.99,76.967,0.5]
[1771930956112,5.19873656,76.98,76.96,0.5]
[1771930956316,5.19873656,76.98,76.948,32.4892551]
[1771930956317,5.19873656,76.98,76.955,0.5]
[1771930957214,5.19326977,76.98,76.955,0.5]
[1771930959320,5.19326977,76.98,76.957,0.5]
[1771930959729,12.9896628,76.985,76.957,0.5]
[1771930960596,12.9896628,76.985,76.956,12.99443838]
[1771930960597,5.19326977,76.99,76.96,5.19326977]
[1771930960801,5.19326977,77.0,76.961,0.5]
[1771930961208,5.19326977,76.99,76.961,0.5]
[1771930961505,5.19326977,76.99,76.963,0.5]
[1771930963116,0.1,77.01,76.965,0.5]
[1771930963321,5.19326977,77.0,76.965,0.5]
[1771930964601,5.19326977,77.0,76.971,0.5]
[1771930964795,0.1,77.01,76.971,0.5]
[1771930965010,5.19326977,77.0,76.971,0.5]
[1771930966407,5.19326977,77.0,76.973,0.5]
[1771930966603,5.19326977,77.0,76.952,64.97531809]
[1771930966604,5.19326977,76.99,76.969,0.5]
[1771930966808,12.98718165,76.999,76.969,0.5]
[1771930967605,45.45513577,76.999,76.969,0.5]
[1771930968708,12.98718165,76.999,76.971,0.5]
[1771930972911,5.19326977,76.98,76.966,12.99263091]
[1771930973113,5.19326977,76.98,76.952,0.5]
[1771930973522,5.19326977,76.96,76.907,65.01358783]
[1771930973730,5.19326977,76.95,76.935,0.5]
[1771930973934,5.19326977,76.96,76.935,0.5]
[1771930975135,5.19326977,76.96,76.937,0.5]
[1771930975633,5.19326977,76.95,76.926,0.5]
[1771930975935,5.19326977,76.94,76.926,0.5]
[1771930976828,5.19326977,76.94,76.918,13.00085805]
[1771930977335,12.99730955,76.939,76.918,0.5]
[1771930977722,5.19326977,76.93,76.913,0.5]
[1771930978319,5.19326977,76.93,76.901,13.50373207]
[1771930978632,5.19326977,76.92,76.902,0.5]
[1771930979229,5.19326977,76.94,76.908,0.5]
[1771930980353,5.19326977,76.95,76.915,0.5]
[1771930980634,5.39326977,76.96,76.931,0.5]
[1771930980932,5.19326977,76.95,76.931,0.5]
[1771930981324,5.19326977,76.95,76.933,0.5]
[1771930982625,5.39326977,76.96,76.933,0.5]
[1771930982934,0.2,76.96,76.933,0.3]
[1771930983535,0.2,76.96,76.934,12.79815426]
[1771930984742,5.39326977,76.96,76.935,0.45739631]
[1771930984942,0.2,76.958,76.935,0.45739631]
[1771930986635,0.2,76.958,76.937,0.45739631]
[1771930987426,12.99426952,76.957,76.937,0.45739631]
[1771930987619,0.2,76.958,76.937,0.45739631]
[1771930988143,5.39326977,76.96,76.937,0.45739631]
[1771930988731,0.2,76.96,76.939,0.45739631]
[1771930989427,12.99393183,76.959,76.939,0.45739631]
[1771930990721,5.39326977,76.96,76.941,0.45739631]
[1771930990938,18.38708305,76.96,76.941,0.45739631]
[1771930991338,0.2,76.96,76.941,0.45739631]
[1771930993522,12.99376117,76.961,76.941,0.45739631]
[1771930994937,0.2,76.963,76.941,0.45739631]
[1771930995338,0.2,76.968,76.941,0.45739631]
[1771930998542,12.99258123,76.967,76.943,0.45739631]
[1771931001046,0.2,76.987,76.961,0.45739631]
[1771931001928,0.2,76.983,76.961,0.45739631]
[1771931002328,0.2,76.979,76.956,0.45739631]
[1771931005743,12.99025901,76.981,76.958,0.46793603]
[1771931008353,0.2,76.984,76.959,12.99393183]
[1771931008548,12.98988088,76.983,76.96,0.46793603]
[1771931008732,0.2,76.984,76.96,0.46793603]
[1771931008931,12.98988088,76.983,76.96,0.46793603]
[1771931009136,5.19326977,76.99,76.961,0.46793603]
[1771931009137,0.2,76.989,76.961,0.46793603]
[1771931009754,0.2,76.987,76.961,0.46793603]
[1771931013749,0.2,76.969,76.95,0.46793603]
[1771931013938,0.2,76.959,76.932,12.99832546]
[1771931014139,0.2,76.959,76.933,0.46793603]
[1771931015647,0.2,76.957,76.933,0.46793603]
[1771931017060,5.19326977,76.96,76.935,0.46793603]
[1771931017061,18.18719601,76.96,76.935,0.46793603]
[1771931017442,18.38719601,76.96,76.935,0.46793603]
[1771931017658,0.2,76.959,76.935,0.46793603]
[1771931019338,0.2,76.957,76.937,0.46793603]
[1771931019539,13.19393183,76.959,76.937,0.46793603]
[1771931020143,0.2,76.958,76.937,0.46793603]
[1771931021062,0.2,76.949,76.931,0.46793603]
[1771931021756,0.2,76.947,76.931,0.46793603]
[1771931023165,0.2,76.973,76.931,0.46793603]
[1771931023461,0.2,76.969,76.933,0.46793603]
[1771931023762,13.19393183,76.959,76.935,0.46793603]
[1771931024141,0.2,76.959,76.935,0.46793603]
[1771931024650,12.99376523,76.96,76.935,0.46793603]
[1771931025078,18.18984898,76.96,76.935,0.46793603]
[1771931027360,18.18984898,76.96,76.936,12.99781636]
[1771931027667,18.18984898,76.96,76.937,0.46793603]
[1771931028270,0.2,76.959,76.937,0.46793603]
[1771931029765,0.2,76.957,76.937,0.46793603]
[1771931030665,0.2,76.965,76.939,0.46793603]
[1771931031468,12.99322743,76.964,76.939,0.46793603]
[1771931031867,0.2,76.965,76.939,0.46793603]
[1771931033171,0.2,76.965,76.941,0.46793603]
[1771931037466,12.99308767,76.964,76.941,0.46793603]
[1771931038868,0.2,76.964,76.941,0.46793603]
[1771931040569,12.99325649,76.963,76.941,0.46793603]
[1771931040755,13.19325649,76.963,76.941,0.46793603]
[1771931041073,12.99325649,76.963,76.941,0.46793603]
[1771931041269,13.19325649,76.963,76.941,0.46793603]
[1771931041952,18.18992243,76.96,76.941,0.46793603]
[1771931043363,12.99410067,76.958,76.941,0.46793603]
[1771931047080,12.49410067,76.958,76.942,0.45552687]
[1771931047258,12.49410067,76.958,76.931,12.99866113]
[1771931047259,0.48096412,76.989,76.951,0.45552687]
[1771931047579,0.48096412,76.999,76.961,0.45552687]
[1771931047775,0.48096412,76.989,76.961,0.45552687]
[1771931050578,0.48096412,76.987,76.961,0.45552687]
[1771931054265,0.48096412,76.995,76.971,0.45552687]
[1771931055263,0.48096412,77.004,76.971,0.45552687]
[1771931055778,0.48096412,76.999,76.971,0.45552687]
[1771931057581,0.48096412,76.997,76.971,0.45552687]
[1771931058593,0.48096412,76.997,76.973,0.45552687]
[1771931059672,0.48096412,76.995,76.973,0.45552687]
[1771931061790,12.98802504,76.994,76.971,0.45552687]
[1771931062085,13.46898916,76.994,76.971,0.45552687]
[1771931062785,0.48096412,76.993,76.971,0.45552687]
[1771931064788,0.47858784,76.99,76.962,0.4761314]
[1771931064977,0.45259809,76.989,76.962,0.4761314]
[1771931067289,12.98903725,76.988,76.962,0.4761314]
[1771931067489,0.45259809,76.987,76.962,0.4761314]
[1771931067887,0.45259809,76.987,76.964,0.48879308]
[1771931070182,12.98937469,76.986,76.964,0.48879308]
[1771931070385,0.45259809,76.985,76.964,0.48879308]
[1771931070920,0.45259809,76.979,76.957,0.48879308]
[1771931075607,0.45259809,76.979,76.958,12.99410067]
[1771931075796,0.45259809,76.979,76.959,0.48879308]
[1771931080798,0.45259809,76.977,76.959,0.48879308]
[1771931082606,0.45259809,76.981,76.961,0.48879308]
[1771931083284,0.45259809,76.979,76.961,0.48879308]
[1771931087208,0.45259809,76.977,76.961,0.48879308]
[1771931090810,0.2,76.969,76.961,0.48879308]
[1771931091600,0.2,76.969,76.961,0.28879308]
[1771931096731,0.4,76.969,76.961,0.28879308]
[1771931097507,0.4,76.969,76.961,0.08879308]
[1771931098418,0.4,76.969,76.951,12.88407579]
[1771931099219,0.85921026,76.969,76.951,12.88407579]
[1771931100513,0.85921026,76.969,76.952,0.49915446]
[1771931101207,0.45921026,76.967,76.925,45.49886252]
[1771931101402,0.45921026,76.967,76.904,52.01257619]
[1771931101403,0.45921026,76.959,76.895,32.51186683]
[1771931101609,5.19311294,76.96,76.88,5.39311294]
[1771931101610,0.45921026,76.909,76.883,13.00677653]
[1771931101812,0.45921026,76.909,76.88,5.39311294]
[1771931101813,0.45921026,76.907,76.88,0.2]
[1771931102118,0.45921026,76.899,76.88,0.2]
[1771931102308,0.45921026,76.879,76.86,0.2]
[1771931102502,5.19311294,76.88,76.84,0.2]
[1771931102503,0.45921026,76.869,76.84,0.2]
[1771931102709,0.45921026,76.859,76.84,0.2]
[1771931103819,13.01100731,76.858,76.84,0.2]
[1771931104116,5.19311294,76.88,76.84,0.2]
[1771931104117,0.45921026,76.905,76.851,0.31205246]
[1771931104319,0.45921026,76.889,76.851,0.31205246]
[1771931104820,0.45921026,76.878,76.851,0.31205246]
[1771931105017,0.45921026,76.878,76.844,0.31205246]
[1771931105213,0.45921026,76.869,76.844,0.31205246]
[1771931106625,0.45921026,76.893,76.851,0.31205246]
[1771931106929,0.45921026,76.889,76.861,0.31205246]
[1771931107819,13.0059307,76.888,76.861,0.31205246]
[1771931108012,0.45921026,76.887,76.861,0.31205246]
[1771931109509,13.00522993,76.893,76.87,5.19311294]
[1771931109713,13.00522993,76.893,76.871,0.31205246]
[1771931110108,13.46444019,76.893,76.871,0.31205246]
[1771931110621,0.45921026,76.892,76.871,0.31205246]
[1771931111818,0.2,76.887,76.871,0.31205246]
[1771931112620,0.2,76.877,76.871,0.31205246]
[1771931113004,0.2,76.877,76.863,0.31205246]
[1771931113410,0.2,76.877,76.865,0.31205246]
[1771931116624,0.2,76.877,76.852,0.31205246]
[1771931116828,0.2,76.877,76.851,0.31205246]
[1771931118427,0.2,76.877,76.859,0.31205246]
[1771931118629,0.45921026,76.873,76.854,0.31205246]
[1771931119910,0.45921026,76.873,76.855,13.01151519]
[1771931120130,0.45921026,76.873,76.856,0.31205246]
[1771931121631,0.2,76.877,76.86,5.19311294]
[1771931121833,0.2,76.877,76.861,0.31205246]
[1771931124429,13.20795195,76.877,76.861,0.31205246]
[1771931124637,0.49891847,76.876,76.856,0.31205246]
[1771931124815,0.2,76.877,76.856,0.31205246]
[1771931125232,0.46633761,76.876,76.856,0.31205246]
[1771931125933,0.46633761,76.876,76.858,0.31205246]
[1771931126337,0.46633761,76.874,76.853,0.31205246]
[1771931126714,0.46633761,76.874,76.848,0.31205246]
[1771931128415,0.46633761,76.872,76.848,13.01265998]
[1771931128620,0.46633761,76.869,76.844,13.01325449]
[1771931129040,0.46633761,76.859,76.84,0.2]
[1771931129535,0.46633761,76.849,76.84,0.2]
[1771931131025,5.19311294,76.86,76.84,0.2]
[1771931131220,0.2,76.877,76.847,0.28432314]
[1771931131427,0.2,76.877,76.851,0.45719157]
[1771931132820,0.2,76.877,76.853,0.45719157]
[1771931133020,0.46633761,76.875,76.853,0.45719157]
[1771931136129,0.46633761,76.875,76.855,0.45719157]
[1771931139640,0.46633761,76.875,76.857,0.45719157]
[1771931143629,0.46633761,76.875,76.865,0.2]
[1771931144527,0.26633761,76.875,76.865,0.2]
[1771931144934,0.26633761,76.875,76.855,0.2]
[1771931145130,5.20688842,76.87,76.841,0.45719157]
[1771931145328,5.20688842,76.86,76.841,13.47107738]
[1771931145543,5.20688842,76.86,76.84,0.2]
[1771931145936,5.20688842,76.85,76.825,0.45719157]
[1771931146544,0.46633761,76.849,76.827,0.45719157]
[1771931148542,13.01270039,76.848,76.827,0.45719157]
[1771931148744,0.46633761,76.847,76.823,13.01689376]
[1771931148947,0.46633761,76.847,76.823,13.47408533]
[1771931149347,0.46633761,76.847,76.824,0.45719157]
[1771931150851,0.46633761,76.847,76.826,0.45719157]
[1771931152452,0.46633761,76.847,76.828,0.45719157]
[1771931152640,0.46633761,76.852,76.828,0.45719157]
[1771931153048,0.46633761,76.855,76.828,0.45719157]
[1771931153245,5.20688842,76.86,76.831,0.45719157]
[1771931153465,0.46633761,76.859,76.831,0.45719157]
[1771931154454,0.46633761,76.859,76.832,13.01541024]
[1771931154647,0.46633761,76.859,76.833,0.45719157]
[1771931155056,5.36086188,76.906,76.82,5.20688842]
[1771931155057,0.48491879,76.849,76.82,0.46082815]
[1771931157744,0.48491879,76.839,76.817,13.01795175]
[1771931158759,5.20688842,76.83,76.817,13.01795175]
[1771931159138,0.48491879,76.834,76.817,13.01795175]
[1771931159642,5.20688842,76.83,76.817,13.01795175]
[1771931159842,5.20688842,76.83,76.817,0.46082815]
[1771931160265,0.48491879,76.834,76.817,0.46082815]
[1771931163265,0.48491879,76.834,76.819,0.46082815]
[1771931171676,0.48491879,76.834,76.815,0.46082815]
[1771931171870,5.20688842,76.84,76.81,0.2]
[1771931171871,0.48491879,76.819,76.81,0.2]
[1771931174278,5.20688842,76.83,76.811,0.46082815]
[1771931174471,13.01542681,76.832,76.811,0.46082815]
[1771931174672,5.20688842,76.83,76.811,0.46082815]
[1771931175765,13.01591846,76.829,76.811,0.46082815]
[1771931175987,13.01591846,76.829,76.81,0.2]
[1771931176365,0.33669114,76.828,76.81,0.2]
[1771931177368,0.33669114,76.819,76.81,0.2]
[1771931177568,0.33669114,76.819,76.787,0.46082815]
[1771931177783,0.33669114,76.817,76.789,0.46082815]
[1771931178575,5.20688842,76.82,76.791,0.46082815]
[1771931178968,0.33669114,76.819,76.791,0.46082815]
[1771931180293,0.33669114,76.819,76.793,0.46082815]
[1771931181182,0.33669114,76.845,76.811,0.46082815]
[1771931181873,5.20688842,76.84,76.811,0.46082815]
[1771931182190,0.33669114,76.839,76.811,0.46082815]
[1771931182592,0.33669114,76.837,76.813,0.46082815]
[1771931184382,5.20688842,76.84,76.813,0.46082815]
[1771931185084,5.54357956,76.84,76.815,0.49450585]
[1771931185684,13.01422454,76.839,76.815,0.49450585]
[1771931186077,13.35091568,76.839,76.815,0.49450585]
[1771931186881,0.33669114,76.856,76.83,5.20688842]
[1771931187090,0.33669114,76.856,76.831,0.49450585]
[1771931187574,5.20688842,76.86,76.833,0.49450585]
[1771931187779,0.33669114,76.864,76.841,0.49450585]
[1771931189293,0.33669114,76.859,76.841,0.49450585]
[1771931189493,0.33669114,76.859,76.836,0.49450585]
[1771931189798,0.33669114,76.857,76.837,0.49450585]
[1771931191499,0.33669114,76.857,76.832,0.49450585]
[1771931191703,0.33669114,76.855,76.833,0.49450585]
[1771931193694,18.55436882,76.86,76.833,0.49450585]
[1771931193895,18.55436882,76.86,76.835,0.49450585]
[1771931194100,0.33669114,76.859,76.835,0.49450585]
[1771931196502,0.33669114,76.859,76.837,0.49450585]
[1771931198811,0.33669114,76.859,76.839,0.49450585]
[1771931199104,13.01013704,76.864,76.841,0.49450585]
[1771931199795,13.34682818,76.864,76.841,0.49450585]
[1771931200108,0.33669114,76.863,76.841,0.49450585]
[1771931201395,13.0103302,76.862,76.842,0.49450585]
[1771931203010,0.33669114,76.862,76.842,0.49450585]
[1771931203212,5.2088261,76.86,76.842,0.49450585]
[1771931203600,0.33669114,76.862,76.842,0.49450585]
[1771931204198,0.33669114,76.862,76.84,5.2088261]
[1771931204907,0.33669114,76.862,76.832,0.49450585]
[1771931205615,0.33669114,76.859,76.832,0.49450585]
[1771931205912,0.33669114,76.859,76.83,5.2088261]
[1771931206117,0.33669114,76.859,76.828,13.5105899]
[1771931206714,0.33669114,76.859,76.829,0.49450585]
[1771931207612,0.33669114,76.857,76.831,0.49450585]
[1771931210210,0.33669114,76.855,76.831,0.49450585]
[1771931215916,13.01168449,76.854,76.831,0.49450585]
[1771931216112,0.33669114,76.853,76.831,0.49450585]
[1771931218313,0.33669114,76.862,76.831,0.49450585]
[1771931218522,5.2088261,76.87,76.841,0.48572456]
[1771931218812,0.33669114,76.869,76.841,0.48572456]
[1771931220417,45.52845528,76.875,76.841,0.48572456]
[1771931220418,0.33669114,76.867,76.841,0.48572456]
[1771931220799,0.33669114,76.859,76.833,0.48572456]
[1771931221006,45.53260133,76.868,76.814,32.54578683]
[1771931221007,0.33669114,76.849,76.824,13.01676559]
[1771931221204,0.33669114,76.849,76.825,0.48572456]
[1771931224814,0.33669114,76.849,76.826,13.01642673]
[1771931225120,0.33669114,76.849,76.826,13.50215129]
[1771931225519,0.33669114,76.849,76.827,0.48572456]
[1771931227025,0.33669114,76.849,76.829,0.48572456]
[1771931229437,0.33669114,76.847,76.818,0.48572456]
[1771931229637,0.33669114,76.829,76.809,0.48572456]
[1771931230133,5.2088261,76.82,76.803,0.48572456]
[1771931230323,0.33669114,76.819,76.798,0.48572456]
[1771931230743,0.33669114,76.824,76.798,0.48572456]
[1771931231742,13.35362617,76.823,76.8,0.48572456]
[1771931232036,0.33669114,76.822,76.8,0.48572456]
[1771931232619,13.01636139,76.827,76.8,5.2088261]
[1771931232825,13.01636139,76.827,76.801,0.48572456]
[1771931233617,0.33669114,76.826,76.801,0.48572456]
[1771931234527,13.01659616,76.825,76.801,0.48572456]
[1771931234735,0.33669114,76.824,76.801,0.48572456]